{"text_format":"1","workbook":"xlsx","n_sheets":22,"sheets":["Network Application","New Delivery Point Data","Table 1 Summer Demand","Table 2 Summer Shoulder Demand","Table 3 Winter Demand","Table 4 SpringLight Load Demand","Table 5 Interruptible Load Data","Table 6 Summer Gross MW maxCap","Table 7 SummerGrossMVAR maxCap","Table 8 Summer Gross MW MinCap","Table 9 SummerGrossMVAR MinCap","Table 10 Winter Gross MW maxCap","Table 11 WinterGrossMVAR maxCap","Table 12 Winter Gross MW MinCap","Table 13 WinterGrossMVAR MinCap","Table 14 Spring Gross MW maxCap","Table 15 SpringGrossMVAR maxCap","Table 16 Spring Gross MW MinCap","Table 17 SpringGrossMVAR MinCap","Table 18 Aux Load MW Forecast","Table 19 Aux Load MVAR Forecast","Table 20 GeneratorNITSCapacity "],"not_rendered":{"charts":0,"images":1,"macros":1,"external_links":0,"defined_names":60,"comments":0,"pivot_tables":0},"unopened":[],"bounds":{"document_bytes":16777216,"sheet_cells":100000,"rows_first":2000,"rows_last":500,"rows_between":2000,"halvings":0,"cell_chars":16384,"cell_head_chars":4096},"cells_cut":0,"cells_raw":0,"read":"whole","date_system":"1900"}

{"sheet":"Network Application","index":0,"n_rows":133,"n_cols":12,"rows_kept":133,"cut":false,"hidden":false,"merged":[[133,2,133,4],[133,5,133,6],[133,8,133,9],[118,2,118,9],[119,1,124,1],[119,2,120,15],[124,2,124,9],[124,11,124,18],[126,2,126,9],[123,2,123,9],[121,2,121,9],[122,2,122,9],[131,2,131,4],[131,5,131,6],[131,8,131,9],[128,2,128,9],[127,1,127,9],[130,2,130,9],[122,11,122,18],[123,11,123,18],[132,2,132,4],[132,5,132,6],[132,8,132,9],[129,2,129,9],[96,0,96,1],[96,2,98,15],[100,0,100,1],[111,1,117,1],[117,11,117,17],[116,2,116,9],[116,11,116,17],[111,2,111,9],[112,2,112,9],[114,2,114,9],[113,2,113,9],[114,11,114,17],[113,11,113,17],[115,11,115,17],[115,2,115,9],[117,2,117,9],[20,10,20,15],[17,1,17,3],[81,6,82,15],[84,0,84,1],[84,2,86,15],[89,14,89,15],[90,7,91,12],[93,6,94,15],[66,2,66,15],[69,6,70,13],[72,0,72,1],[72,2,74,15],[77,13,77,15],[78,7,79,11],[61,3,64,14],[66,0,66,1],[11,14,11,15],[12,1,12,5],[12,6,12,15],[13,1,13,5],[13,6,13,15],[15,14,15,15],[19,1,19,3],[19,4,19,13],[21,0,21,1],[21,2,21,9],[21,10,21,15],[22,0,22,1],[22,2,22,9],[22,10,24,15],[23,0,23,1],[23,2,23,9],[24,0,24,1],[59,9,59,12],[11,1,11,5],[11,6,11,13],[19,14,19,15],[20,0,20,9],[7,1,7,5],[7,6,7,13],[7,14,7,15],[8,1,8,5],[8,6,8,13],[8,14,8,15],[1,0,1,15],[2,0,2,15],[5,0,5,8],[5,9,5,11],[5,12,5,15],[3,0,3,15],[9,1,9,5],[9,6,9,13],[9,14,9,15],[18,14,18,15],[16,4,16,13],[16,14,16,15],[16,1,16,3],[14,1,14,15],[15,1,15,3],[15,4,15,13],[17,4,17,13],[17,14,17,15],[18,1,18,3],[18,4,18,13],[10,1,10,5],[10,6,10,13],[10,14,10,15]]}
[]
["Louisville Gas & Electric Company / Kentucky Utilities Company"]
["Network Integration Transmission Service"]
["Application (Rev 4/25/16)"]
[]
["Date:",null,null,null,null,null,null,null,null,"     "]
[]
[null,"Company Name"]
[null,"Company Acronym"]
[null,"Company Address (Do Not Use P.O. Box)"]
[null,"City, State Zip"]
[null,"LGEE OASIS Number",null,null,null,null," "]
[]
[]
[null,"Point of Contact Information"]
[null,"POC Name"]
[null,"POC Phone Number"]
[null,"POC Fax #"]
[null,"POC Email Address"]
[]
[]
["1.0",null,"Eligible Customer Statement"]
[null,null,null,null,null,null,null,null,null,null,"is, or will be upon the commencement of service,  an Eligible Customer under LG&E/KU's Open Access Transmission Tariff. "]
[null,null,"Enter your company’s name above"]
[]
[]
[null,2,"Type of Application (Check One)"]
[null,null,null,null,null,"  New Service Agreement Request"]
[null,null,null,null,null,null,null,"Complete all worksheets"]
[]
[null,null,null,null,null,"  Modification of Existing Service Agreement, change of Network Resources"]
[null,null,null,null,null,null,null,"Complete the following worksheets:"]
[null,null,null,null,null,null,null,null,"Network Application"]
[null,null,null,null,null,null,null,null,"Table 6 Summer Gross MW Maximum Capability"]
[null,null,null,null,null,null,null,null,"Table 7 Summer Gross MVAR Maximum Capability"]
[null,null,null,null,null,null,null,null,"Table 8 Summer Gross MW Minimum Capability"]
[null,null,null,null,null,null,null,null,"Table 9 Summer Gross MVAR Minimum Capability"]
[null,null,null,null,null,null,null,null,"Table 10 Winter Gross MW Maximum Capability"]
[null,null,null,null,null,null,null,null,"Table 11 Winter Gross MVAR Maximum Capability"]
[null,null,null,null,null,null,null,null,"Table 12 Winter Gross MW Minimum Capability"]
[null,null,null,null,null,null,null,null,"Table 13 Winter Gross MVAR Minimum Capability"]
[null,null,null,null,null,null,null,null,"Table 14 Spring Gross MW Maxium Capability"]
[null,null,null,null,null,null,null,null,"Table 15 Spring Gross MVAR Maxium Capability"]
[null,null,null,null,null,null,null,null,"Table 16 Spring Gross MW Minimum Capability"]
[null,null,null,null,null,null,null,null,"Table 17 Spring Gross MVAR Minimum Capability"]
[null,null,null,null,null,null,null,null,"Table 18 Aux Load MW Forecast"]
[null,null,null,null,null,null,null,null,"Table 19 Aux Load MVAR Forecast"]
[null,null,null,null,null,null,null,null,"Table 20 GeneratorNITSCapacity "]
[]
[null,null,null,null,null,"  Modification of Existing Service Agreement, change of Network Load"]
[null,null,null,null,null,null,null,"Complete the following worksheets, unless indicate Not Applicable"]
[null,null,null,null,null,null,null,null,"Network Application"]
[null,null,null,null,null,null,null,null,"New Delivery Point Data"]
[null,null,null,null,null,null,null,null,"Table 1 Summer Demand"]
[null,null,null,null,null,null,null,null,"Table 2 Summer Shoulder Demand"]
[null,null,null,null,null,null,null,null,"Table 3 Winter Demand"]
[null,null,null,null,null,null,null,null,"Table 4 Spring Light Load Demand"]
[null,null,null,null,null,null,null,null,"Table 5 Interruptible Load Data"]
[]
[null,null,2.1,"Service Commencement Date"]
[]
[null,null,null,"Note :  The LG&E/KU OATT requires the Customer to provide a ten year forecast of Network Resources, Network Loads and Interruptible Loads.  However, the NERC MMWG power flow development process and schedule requires the TO to have 13 years of forecast data.  Therefore, the Customer is requested to submit a 13 year forecast with its Application."]
[]
[]
[]
[]
[3,null,"New Delivery Point Data - The Eligible Customer is to provide delivery point data unless \"No\" is indicated below."]
[]
[null,null,null,null,"(Yes/No)"]
[null,null,null,null,null,null,"This Application is for a new Delivery Point.  If \"yes\", the \"New Delivery Point Data\" sheet must be completed."]
[]
[]
[4,null,"Network Load Forecast - The Eligible Customer is to provide a forecast for each delivery point.  Table 1 Summer Demand, Table 2 Summer Shoulder Demand, Table 3 Winter Demand, and Table 4 Spring Light Load Demand, must be completed if this Application is a \"Request for New Service\" or a \"Modification of Existing Service, change of Network Load\"."]
[]
[]
[]
[null,null,null,null,"(Yes/No)"]
[null,null,null,null,null,null,"The current load forecast was submitted to the ITO on:"]
[null,null,null,null,null,null,null,"If \"No\", a current load forecast must be provided for all existing delivery points."]
[]
[]
[null,null,null,null,null,null,"The current load forecast on file with the ITO is not changed by this Application except as indicated in Table 1 to Table 4."]
[]
[]
[5,null,"Interruptible Load Forecast - The Eligible Customer is required to provide a forecast of the interruptible load at each delivery point.  Table 5  must be completed if this Application is a \"Request for New Service\" or a \"Modification of Existing Service, change of Network Load\"."]
[]
[]
[]
[null,null,null,null,"(Yes/No)"]
[null,null,null,null,null,null,"The current interruptible load forecast was submitted to the ITO on:"]
[null,null,null,null,null,null,null,"If \"No\", a current interruptible load forecast must be provided for all existing delivery points."]
[]
[]
[null,null,null,null,null,null,"The current interruptible load forecast on file with the ITO is not changed by this Application except as indicated in \"Interruptible Load Data\"."]
[]
[]
[6,null,"Network Resources - The Eligible Customer is to provide a description and forecast of Network Resources.  Tables 6-19 Resource Forecast and Table 20 Generator NITS Capacity  must be completed if this Application is a \"Request for New Service\" or a \"Modification of Existing Service, change of Network Resources\"."]
[]
[]
[]
[7,null,"Comments:"]
[]
[]
[]
[]
[]
[]
[]
[]
[]
[]
[null,null,"Upon completion of this form, please return via email to:"]
[]
[]
[null,null,"Support"]
[null,null,"TranServ International"]
[null,null,"Phone:  763-205-7099"]
[null,null,"Email:  Support@transervinternational.net"]
[]
[null,null,"Note: Either hyperlink to TranServ above will also email Ashley Moore and Delyn Kilpack for informational purposes only.  If the above links are not used, please cc the email to Derek Rahn and Delyn Kilpack."]
[]
[]
[null,null,"Ashley Moore",null,null,null,null,null,null,null,null,"Delyn Kilpack"]
[null,null,"Mgr, Transmission Policy and Tariffs",null,null,null,null,null,null,null,null,"Manager, Transmission Strategy and Planning"]
[null,null,"LG&E and KU",null,null,null,null,null,null,null,null,"LG&E/KU"]
[null,null,"Ashley.Moore@lge-ku.com",null,null,null,null,null,null,null,null,"delyn.kilpack@lge-ku.com"]
[]
[null,"By emailing this form to TranServ International, you are stating that all of the information above is correct and that you are considered an authorized representative of your company."]
[]
[]
[null,null,"ITO Use Only"]
[null,null,"Date Received",null,null,"     "]
[null,null,"Time Received",null,null,"     "]

{"sheet":"New Delivery Point Data","index":1,"n_rows":36,"n_cols":7,"rows_kept":36,"cut":false,"hidden":false,"merged":[[35,0,64,8],[5,6,5,7],[6,6,6,7],[2,2,2,4],[34,0,34,8],[11,6,11,7],[12,6,12,7],[17,1,20,7]]}
[null,null,null,null,"New Delivery Point Data"]
[]
[null,"Name",null,null,null,null,"Voltage (kV)"]
[]
[null,"Transmission Network Connection Point"]
[null,null,null,"Latitude (or UTM North)"]
[null,null,null,"Longitude (or UTM East)"]
[]
[null,"Length of Customer's Transmission Tap line"]
[]
[null,"Location of Customer's Station"]
[null,null,null,"Latitude (or UTM North)"]
[null,null,null,"Longitude (or UTM East)"]
[]
[null,"Minimum Transmission Short Circuit MVA required:"]
[]
[]
[null,"Describe the nature of the load and operating characteristics.  Comment on load fluctuations (in-rush greater than 5 MVA, equivalent to 1000hp motor start) that could be caused by motors, welders, electric furnaces, etc.  If none, indicate \"Not Applicable\"."]
[]
[]
[]
[]
[]
[]
[]
[]
[]
[]
[]
[]
[]
[]
[]
[]
["Figure 1 - Map"]
["Paste Map Here"]

{"sheet":"Table 1 Summer Demand","index":2,"n_rows":33,"n_cols":16,"rows_kept":33,"cut":false,"hidden":false,"merged":[[2,1,4,14]]}
[]
["Instructions:"]
[null,"Provide the demand coincident with your forecasted Summer Peak that represents 50% probability that loads are below this level and 50% probability loads are above this level for the new delivery point and all existing delivery points that will be affected by associated load shifts.  Provide the power factor at the transmission level (including reactive losses through the transformers)."]
[]
[]
[]
["New Load Forecast Information (for all affected delivery points)"]
["Delivery Point Name","Delivery Point ID","kV","Power Factor ",2016,{"$f":"E8+1","v":2017},2018,2019,2020,2021,2022,2023,2024,2025,2026,2027]
[]
[]
[]
[]
[]
[]
[]
[]
[]
[]
[null,"New Summer Demand",null,null,{"$f":"ROUND(SUM(E9:E18),1)","v":0},0,0,0,0,0,0,0,0,0,0,{"$f":"ROUND(SUM(P9:P18),1)","v":0}]
[]
["Previous Load Forecast Information (for all affected delivery points)"]
["Delivery Point Name","Delivery Point ID","kV","Power Factor ",2016,{"$f":"E22+1","v":2017},2018,2019,2020,2021,2022,2023,2024,2025,2026,2027]
[]
[]
[]
[]
[]
[]
[]
[]
[]
[]
[null,"Previous Summer Demand",null,null,{"$f":"ROUND(SUM(E23:E32),1)","v":0},0,0,0,0,0,0,0,0,0,0,{"$f":"ROUND(SUM(P23:P32),1)","v":0}]

{"sheet":"Table 2 Summer Shoulder Demand","index":3,"n_rows":33,"n_cols":16,"rows_kept":33,"cut":false,"hidden":false,"merged":[[2,1,4,14]]}
[]
["Instructions:"]
[null,"Provide the demand as 70%-80% of the 50/50 summer peak load for the new delivery point and all existing delivery points that will be affected by associated load shifts.  Provide the power factor at the transmission level (including reactive losses through the transformers)."]
[]
[]
[]
["New Load Forecast Information (for all affected delivery points)"]
["Delivery Point Name","Delivery Point ID","kV","Power Factor ",2016,{"$f":"E8+1","v":2017},2018,2019,2020,2021,2022,2023,2024,2025,2026,2027]
[]
[]
[]
[]
[]
[]
[]
[]
[]
[]
[null,"New Summer Shoulder  Demand",null,null,{"$f":"ROUND(SUM(E9:E18),1)","v":0},0,0,0,0,0,0,0,0,0,0,{"$f":"ROUND(SUM(P9:P18),1)","v":0}]
[]
["Previous Load Forecast Information (for all affected delivery points)"]
["Delivery Point Name","Delivery Point ID","kV","Power Factor ",2016,{"$f":"E22+1","v":2017},2018,2019,2020,2021,2022,2023,2024,2025,2026,2027]
[]
[]
[]
[]
[]
[]
[]
[]
[]
[]
[null,"Previous Summer Shoulder Demand",null,null,{"$f":"ROUND(SUM(E23:E32),1)","v":0},0,0,0,0,0,0,0,0,0,0,{"$f":"ROUND(SUM(P23:P32),1)","v":0}]

{"sheet":"Table 3 Winter Demand","index":4,"n_rows":33,"n_cols":16,"rows_kept":33,"cut":false,"hidden":false,"merged":[[2,1,4,14]]}
[]
["Instructions:"]
[null,"Provide the demand coincident with your forecasted Winter Peak that represents 50% probability that loads are below this level and 50% probability loads are above this level for the new delivery point and all existing delivery points that will be affected by associated load shifts.  Provide the power factor at the transmission level (including reactive losses through the transformers)."]
[]
[]
[]
["New Load Forecast Information (for all affected delivery points)"]
["Delivery Point Name","Delivery Point ID","kV","Power Factor ",2016,{"$f":"E8+1","v":2017},2018,2019,2020,2021,2022,2023,2024,2025,2026,2027]
[]
[]
[]
[]
[]
[]
[]
[]
[]
[]
[null,"New Winter Demand",null,null,{"$f":"ROUND(SUM(E9:E18),1)","v":0},0,0,0,0,0,0,0,0,0,0,{"$f":"ROUND(SUM(P9:P18),1)","v":0}]
[]
["Previous Load Forecast Information (for all affected delivery points)"]
["Delivery Point Name","Delivery Point ID","kV","Power Factor ",2016,{"$f":"E22+1","v":2017},2018,2019,2020,2021,2022,2023,2024,2025,2026,2027]
[]
[]
[]
[]
[]
[]
[]
[]
[]
[]
[null,"Previous Winter Demand",null,null,{"$f":"ROUND(SUM(E23:E32),1)","v":0},0,0,0,0,0,0,0,0,0,0,{"$f":"ROUND(SUM(P23:P32),1)","v":0}]

{"sheet":"Table 4 SpringLight Load Demand","index":5,"n_rows":33,"n_cols":16,"rows_kept":33,"cut":false,"hidden":false,"merged":[[2,1,4,14]]}
[]
["Instructions:"]
[null,"Provide the Light Load Forecast - usually 2:00 am Easter Sunday morning demand for the new delivery point and all existing delivery points that will be affected by associated load shifts.  Provide the power factor at the transmission level (including reactive losses through the transformers)."]
[]
[]
[]
["New Load Forecast Information (for all affected delivery points)"]
["Delivery Point Name","Delivery Point ID","kV","Power Factor ",2016,{"$f":"E8+1","v":2017},2018,2019,2020,2021,2022,2023,2024,2025,2026,2027]
[]
[]
[]
[]
[]
[]
[]
[]
[]
[]
[null,"New Light Load Demand",null,null,{"$f":"ROUND(SUM(E9:E18),1)","v":0},0,0,0,0,0,0,0,0,0,0,{"$f":"ROUND(SUM(P9:P18),1)","v":0}]
[]
["Previous Load Forecast Information (for all affected delivery points)"]
["Delivery Point Name","Delivery Point ID","kV","Power Factor ",2016,{"$f":"E22+1","v":2017},2018,2019,2020,2021,2022,2023,2024,2025,2026,2027]
[]
[]
[]
[]
[]
[]
[]
[]
[]
[]
[null,"Previous Light Load Demand",null,null,{"$f":"ROUND(SUM(E23:E32),1)","v":0},0,0,0,0,0,0,0,0,0,0,{"$f":"ROUND(SUM(P23:P32),1)","v":0}]

{"sheet":"Table 5 Interruptible Load Data","index":6,"n_rows":79,"n_cols":15,"rows_kept":79,"cut":false,"hidden":false,"merged":[[13,5,13,14],[14,5,14,14],[8,5,8,14],[9,5,9,14],[10,5,10,14],[11,5,11,14],[4,5,4,14],[5,5,5,14],[6,5,6,14],[7,5,7,14],[12,5,12,14]]}
[]
["Note:  Indicate \"none\" or \"no changes\", if applicable. "]
[]
["Interruptible Load Information (for all affected delivery points)"]
["Delivery Point Name","Delivery Point ID","kV","Hrs/Yr*","Occ/Yr**","Conditions of Interruption"]
[]
[]
[]
[]
[]
[]
[]
[]
[]
[]
[null,"* Maximum Hours per year",null,null,"** Maximum Occurrences per year"]
[]
["Summer Interruptible Load Forecast Information (for all affected delivery points)"]
["Delivery Point Name","Delivery Point ID","kV","Power Factor ",2016,{"$f":"E19+1","v":2017},2018,2019,2020,2021,2022,2023,2024,2025,2026]
[]
[]
[]
[]
[]
[]
[]
[]
[]
[]
[null,"Interruptible Summer Demand",null,null,{"$f":"ROUND(SUM(E20:E29),1)","v":0},0,0,0,0,0,0,0,0,0,0]
[]
["Summer Shoulder Interruptible Load Forecast Information (for all affected delivery points)"]
["Delivery Point Name","Delivery Point ID","kV","Power Factor ",2016,{"$f":"E33+1","v":2017},2018,2019,2020,2021,2022,2023,2024,2025,2026]
[]
[]
[]
[]
[]
[]
[]
[]
[]
[]
[null,"Interruptible Summer Shoulder Demand",null,null,{"$f":"ROUND(SUM(E34:E43),1)","v":0},0,0,0,0,0,0,0,0,0,0]
[]
[]
[]
[]
[]
[]
["Winter Interruptible Load Forecast Information (for all affected delivery points"]
["Delivery Point Name","Delivery Point ID","kV","Power Factor ",2016,{"$f":"E52+1","v":2017},2018,2019,2020,2021,2022,2023,2024,2025,2026]
[]
[]
[]
[]
[]
[]
[]
[]
[]
[]
[null,"Interruptible Winter Demand",null,null,{"$f":"ROUND(SUM(E53:E62),1)","v":0},0,0,0,0,0,0,0,0,0,0]
[]
[]
[]
["Spring Light Load Interruptible Load Forecast Information (for all affected delivery points"]
["Delivery Point Name","Delivery Point ID","kV","Power Factor ",2016,{"$f":"E68+1","v":2017},2018,2019,2020,2021,2022,2023,2024,2025,2026]
[]
[]
[]
[]
[]
[]
[]
[]
[]
[]
[null,"Interruptible Spring Light Load Demand",null,null,{"$f":"ROUND(SUM(E69:E78),1)","v":0},0,0,0,0,0,0,0,0,0,0]

{"sheet":"Table 6 Summer Gross MW maxCap","index":7,"n_rows":31,"n_cols":12,"rows_kept":31,"cut":false,"hidden":false,"merged":[]}
[null,null,null,"Table 6"]
[null,null,null,"Summer Network Resource Gross MW Maximum Generation Capabilities 10 Year Forecast"]
[" ",2016,{"$f":"B3+1","v":2017},{"$f":"C3+1","v":2018},2019,2020,2021,2022,2023,2024,2025,2026]
["Unit Name"]
[]
[]
[]
[]
[]
[]
[]
[]
[]
[]
[]
[]
[]
[]
[]
[]
[]
[]
[]
[]
[]
[]
["Firm Purchases designated as a network resource"]
[]
[]
[]
["Total Network Resource Gross MW (Max)",{"$f":"SUM(B7:B30)","v":0},{"$f":"SUM(C7:C30)","v":0},0,0,0,0,0,0,0,0,0]

{"sheet":"Table 7 SummerGrossMVAR maxCap","index":8,"n_rows":31,"n_cols":12,"rows_kept":31,"cut":false,"hidden":false,"merged":[]}
[null,null,null,"Table 7"]
[null,null,null,"Summer Network Resource Gross MVAR Maximum Generation Capabilities (@ Max MW Capability) 10 Year Forecast"]
[" ",2016,{"$f":"B3+1","v":2017},{"$f":"C3+1","v":2018},2019,2020,2021,2022,2023,2024,2025,2026]
["Unit Name"]
[]
[]
[]
[]
[]
[]
[]
[]
[]
[]
[]
[]
[]
[]
[]
[]
[]
[]
[]
[]
[]
[]
["Firm Purchases designated as a network resource"]
[]
[]
[]
["Total Network Resource Gross MVAR (Max)",{"$f":"SUM(B7:B30)","v":0},{"$f":"SUM(C7:C30)","v":0},0,0,0,0,0,0,0,0,0]

{"sheet":"Table 8 Summer Gross MW MinCap","index":9,"n_rows":31,"n_cols":12,"rows_kept":31,"cut":false,"hidden":false,"merged":[]}
[null,null,null,"Table 8"]
[null,null,null,"Summer Network Resource Gross MW Minimum Generation Capabilities 10 Year Forecast"]
[" ",2016,{"$f":"B3+1","v":2017},{"$f":"C3+1","v":2018},2019,2020,2021,2022,2023,2024,2025,2026]
["Unit Name"]
[]
[]
[]
[]
[]
[]
[]
[]
[]
[]
[]
[]
[]
[]
[]
[]
[]
[]
[]
[]
[]
[]
["Firm Purchases designated as a network resource"]
[]
[]
[]
["Total Network Resource Gross MW (Min)",{"$f":"SUM(B7:B30)","v":0},{"$f":"SUM(C7:C30)","v":0},0,0,0,0,0,0,0,0,0]

{"sheet":"Table 9 SummerGrossMVAR MinCap","index":10,"n_rows":31,"n_cols":12,"rows_kept":31,"cut":false,"hidden":false,"merged":[]}
[null,null,null,"Table 9"]
[null,null,null,"Summer Network Resource Gross MVAR Minimum Generation Capabilities (@ Max MW Capability) 10 Year Forecast"]
[" ",2016,{"$f":"B3+1","v":2017},{"$f":"C3+1","v":2018},2019,2020,2021,2022,2023,2024,2025,2026]
["Unit Name"]
[]
[]
[]
[]
[]
[]
[]
[]
[]
[]
[]
[]
[]
[]
[]
[]
[]
[]
[]
[]
[]
[]
["Firm Purchases designated as a network resource"]
[]
[]
[]
["Total Network Resource Gross MVAR (Min)",{"$f":"SUM(B7:B30)","v":0},{"$f":"SUM(C7:C30)","v":0},0,0,0,0,0,0,0,0,0]

{"sheet":"Table 10 Winter Gross MW maxCap","index":11,"n_rows":31,"n_cols":12,"rows_kept":31,"cut":false,"hidden":false,"merged":[]}
[null,null,null,"Table 10"]
[null,null,null,"Winter Network Resource Gross MW Maximum Generation Capabilities 10 Year Forecast"]
[" ",2016,{"$f":"B3+1","v":2017},2018,2019,2020,2021,2022,2023,2024,2025,2026]
["Unit Name"]
[]
[]
[]
[]
[]
[]
[]
[]
[]
[]
[]
[]
[]
[]
[]
[]
[]
[]
[]
[]
[]
[]
["Firm Purchases designated as a network resource"]
[]
[]
[]
["Total Network Resource Gross MW (Max)",{"$f":"SUM(B7:B30)","v":0},0,0,0,0,0,0,0,0,0,0]

{"sheet":"Table 11 WinterGrossMVAR maxCap","index":12,"n_rows":31,"n_cols":12,"rows_kept":31,"cut":false,"hidden":false,"merged":[]}
[null,null,null,"Table 11"]
[null,null,null,"Winter Network Resource Gross MVAR Maximum Generation Capabilities (@ Max MW Capability) 10 Year Forecast"]
[" ",2016,{"$f":"B3+1","v":2017},2018,2019,2020,2021,2022,2023,2024,2025,2026]
["Unit Name"]
[]
[]
[]
[]
[]
[]
[]
[]
[]
[]
[]
[]
[]
[]
[]
[]
[]
[]
[]
[]
[]
[]
["Firm Purchases designated as a network resource"]
[]
[]
[]
["Total Network Resource Gross MVAR (Max)",{"$f":"SUM(B7:B30)","v":0},0,0,0,0,0,0,0,0,0,0]

{"sheet":"Table 12 Winter Gross MW MinCap","index":13,"n_rows":31,"n_cols":12,"rows_kept":31,"cut":false,"hidden":false,"merged":[]}
[null,null,null,"Table 12"]
[null,null,null,"Winter Network Resource Gross MW Minimum Generation Capabilities 10 Year Forecast"]
[" ",2016,{"$f":"B3+1","v":2017},2018,2019,2020,2021,2022,2023,2024,2025,2026]
["Unit Name"]
[]
[]
[]
[]
[]
[]
[]
[]
[]
[]
[]
[]
[]
[]
[]
[]
[]
[]
[]
[]
[]
[]
["Firm Purchases designated as a network resource"]
[]
[]
[]
["Total Network Resource Gross MW (Min)",{"$f":"SUM(B7:B30)","v":0},0,0,0,0,0,0,0,0,0,0]

{"sheet":"Table 13 WinterGrossMVAR MinCap","index":14,"n_rows":31,"n_cols":12,"rows_kept":31,"cut":false,"hidden":false,"merged":[]}
[null,null,null,"Table 13"]
[null,null,null,"Winter Network Resource Gross MVAR Minimum Generation Capabilities (@ Max MW Capability) 10 Year Forecast"]
[" ",2016,{"$f":"B3+1","v":2017},2018,2019,2020,2021,2022,2023,2024,2025,2026]
["Unit Name"]
[]
[]
[]
[]
[]
[]
[]
[]
[]
[]
[]
[]
[]
[]
[]
[]
[]
[]
[]
[]
[]
[]
["Firm Purchases designated as a network resource"]
[]
[]
[]
["Total Network Resource Gross MVAR (Min)",{"$f":"SUM(B7:B30)","v":0},0,0,0,0,0,0,0,0,0,0]

{"sheet":"Table 14 Spring Gross MW maxCap","index":15,"n_rows":31,"n_cols":12,"rows_kept":31,"cut":false,"hidden":false,"merged":[]}
[null,null,null,"Table 14"]
[null,null,null,"Spring Network Resource Gross MW Maximum Generation Capabilities 10 Year Forecast"]
[" ",2016,{"$f":"B3+1","v":2017},2018,2019,2020,2021,2022,2023,2024,2025,2026]
["Unit Name"]
[]
[]
[]
[]
[]
[]
[]
[]
[]
[]
[]
[]
[]
[]
[]
[]
[]
[]
[]
[]
[]
[]
["Firm Purchases designated as a network resource"]
[]
[]
[]
["Total Network Resource Gross MW (Max)",{"$f":"SUM(B7:B30)","v":0},0,0,0,0,0,0,0,0,0,0]

{"sheet":"Table 15 SpringGrossMVAR maxCap","index":16,"n_rows":31,"n_cols":12,"rows_kept":31,"cut":false,"hidden":false,"merged":[]}
[null,null,null,"Table 15"]
[null,null,null,"Spring Network Resource Gross MVAR Maximum Generation Capabilities (@ Max MW Capability) 10 Year Forecast"]
[" ",2016,{"$f":"B3+1","v":2017},2018,2019,2020,2021,2022,2023,2024,2025,2026]
["Unit Name"]
[]
[]
[]
[]
[]
[]
[]
[]
[]
[]
[]
[]
[]
[]
[]
[]
[]
[]
[]
[]
[]
[]
["Firm Purchases designated as a network resource"]
[]
[]
[]
["Total Network Resource Gross MVAR (Max)",{"$f":"SUM(B7:B30)","v":0},0,0,0,0,0,0,0,0,0,0]

{"sheet":"Table 16 Spring Gross MW MinCap","index":17,"n_rows":31,"n_cols":12,"rows_kept":31,"cut":false,"hidden":false,"merged":[]}
[null,null,null,"Table 16"]
[null,null,null,"Spring Network Resource Gross MW Minimum Generation Capabilities 10 Year Forecast"]
[" ",2016,{"$f":"B3+1","v":2017},2018,2019,2020,2021,2022,2023,2024,2025,2026]
["Unit Name"]
[]
[]
[]
[]
[]
[]
[]
[]
[]
[]
[]
[]
[]
[]
[]
[]
[]
[]
[]
[]
[]
[]
["Firm Purchases designated as a network resource"]
[]
[]
[]
["Total Network Resource Gross MW (Min)",{"$f":"SUM(B7:B30)","v":0},0,0,0,0,0,0,0,0,0,0]

{"sheet":"Table 17 SpringGrossMVAR MinCap","index":18,"n_rows":31,"n_cols":12,"rows_kept":31,"cut":false,"hidden":false,"merged":[]}
[null,null,null,"Table 17"]
[null,null,null,"Spring Network Resource Gross MVAR Minimum Generation Capabilities (@ Max MW Capability) 10 Year Forecast"]
[" ",2016,{"$f":"B3+1","v":2017},2018,2019,2020,2021,2022,2023,2024,2025,2026]
["Unit Name"]
[]
[]
[]
[]
[]
[]
[]
[]
[]
[]
[]
[]
[]
[]
[]
[]
[]
[]
[]
[]
[]
[]
["Firm Purchases designated as a network resource"]
[]
[]
[]
["Total Network Resource Gross MVAR (Min)",{"$f":"SUM(B7:B30)","v":0},0,0,0,0,0,0,0,0,0,0]

{"sheet":"Table 18 Aux Load MW Forecast","index":19,"n_rows":32,"n_cols":13,"rows_kept":32,"cut":false,"hidden":false,"merged":[]}
[null,null,null,null,"Table 18"]
[null,null,null,null,"Auxiliary Load 10 Year Forecast"]
[null,null,null,null,"MW Auxiliary Load (Normal Operations)"]
[" ",null,2016,{"$f":"C4+1","v":2017},2018,2019,2020,2021,2022,2023,2024,2025,2026]
["Unit Name","Aux Load(s) Connection Points"]
[]
[]
[]
[]
[]
[]
[]
[]
[]
[]
[]
[]
[]
[]
[]
[]
[]
[]
[]
[]
[]
[]
[]
[]
[]
[]
["Total MW",null,{"$f":"SUM(C8:C31)","v":0},0,0,0,0,0,0,0,0,0,0]

{"sheet":"Table 19 Aux Load MVAR Forecast","index":20,"n_rows":32,"n_cols":13,"rows_kept":32,"cut":false,"hidden":false,"merged":[]}
[null,null,null,null,"Table 19"]
[null,null,null,null,"Auxiliary Load 10 Year Forecast"]
[null,null,null,null,"MVAR Auxiliary Load (Normal Operations)"]
[" ",null,2016,{"$f":"C4+1","v":2017},2018,2019,2020,2021,2022,2023,2024,2025,2026]
["Unit Name","Aux Load(s) Connection Points"]
[]
[]
[]
[]
[]
[]
[]
[]
[]
[]
[]
[]
[]
[]
[]
[]
[]
[]
[]
[]
[]
[]
[]
[]
[]
[]
["Total MVAR",null,{"$f":"SUM(C8:C31)","v":0},0,0,0,0,0,0,0,0,0,0]

{"sheet":"Table 20 GeneratorNITSCapacity ","index":21,"n_rows":31,"n_cols":12,"rows_kept":31,"cut":false,"hidden":false,"merged":[]}
[null,null,null,"Table 20"]
[null,null,null,"NITS Capacity – Maximum net MWs that can be transferred from the specific unit to the Network Customer’s load "]
[" ",2016,{"$f":"B3+1","v":2017},{"$f":"C3+1","v":2018},2019,2020,2021,2022,2023,2024,2025,2026]
["Unit Name"]
[]
[]
[]
[]
[]
[]
[]
[]
[]
[]
[]
[]
[]
[]
[]
[]
[]
[]
[]
[]
[]
[]
[]
[]
[]
[]
[null,{"$f":"SUM(B7:B30)","v":0},{"$f":"SUM(C7:C30)","v":0},0,0,0,0,0,0,0,0,0]